[Event "Titled Tuesday Blitz July 20 2021"]
[White "Spata, German"]
[Black "Nguyen, Quoc Hy"]
[WhiteFideId "113026"]
[BlackFideId "12410853"]
[WhiteElo "2238"]
[BlackElo "1975"]
[Result "0-1"]
[Round "09"]
[TimeControl "180+1"]
[Date "2021.07.21"]
[WhiteClock "0:00:18"]
[BlackClock "0:00:22"]

1. Nf3 {[%clk 0:02:59]}  d5 {[%clk 0:02:56]} 2. e3 {[%clk 0:02:59]}  Nf6 {[%clk 0:02:55]} 3. b3 {[%clk 0:02:59]}  Bg4 {[%clk 0:02:53]} 4. Bb2 {[%clk 0:03:00]}  Nbd7 {[%clk 0:02:53]} 5. Be2 {[%clk 0:03:01]}  e6 {[%clk 0:02:53]} 6. O-O {[%clk 0:03:01]}  Bd6 {[%clk 0:02:52]} 7. c4 {[%clk 0:03:01]}  c6 {[%clk 0:02:50]} 8. cxd5 {[%clk 0:02:59]}  exd5 {[%clk 0:02:49]} 9. d3 {[%clk 0:03:00]}  O-O {[%clk 0:02:48]} 10. Nbd2 {[%clk 0:03:00]}  a5 {[%clk 0:02:46]} 11. a3 {[%clk 0:02:58]}  Qe7 {[%clk 0:02:44]} 12. Re1 {[%clk 0:02:57]}  h6 {[%clk 0:02:42]} 13. Qc2 {[%clk 0:02:55]}  Rfe8 {[%clk 0:02:27]} 14. Bf1 {[%clk 0:02:53]}  Ne5 {[%clk 0:02:18]} 15. Nxe5 {[%clk 0:02:53]}  Bxe5 {[%clk 0:02:18]} 16. Bxe5 {[%clk 0:02:49]}  Qxe5 {[%clk 0:02:16]} 17. Rab1 {[%clk 0:02:35]}  Re6 {[%clk 0:01:49]} 18. Be2 {[%clk 0:02:24]}  Bxe2 {[%clk 0:01:24]} 19. Rxe2 {[%clk 0:02:24]}  Ng4 {[%clk 0:01:25]} 20. Nf3 {[%clk 0:02:21]}  Qh5 {[%clk 0:01:24]} 21. h3 {[%clk 0:02:21]}  Ne5 {[%clk 0:01:20]} 22. Nxe5 {[%clk 0:02:21]}  Qxe5 {[%clk 0:01:19]} 23. d4 {[%clk 0:02:13]}  Qd6 {[%clk 0:00:59]} 24. b4 {[%clk 0:02:13]}  axb4 {[%clk 0:00:45]} 25. axb4 {[%clk 0:02:14]}  b5 {[%clk 0:00:45]} 26. Ree1 {[%clk 0:02:05]}  Ra4 {[%clk 0:00:44]} 27. Qc3 {[%clk 0:01:57]}  Rg6 {[%clk 0:00:43]} 28. Rec1 {[%clk 0:01:46]}  Qe6 {[%clk 0:00:41]} 29. Qc2 {[%clk 0:01:44]}  Qe7 {[%clk 0:00:31]} 30. Qc5 {[%clk 0:00:56]}  Qh4 {[%clk 0:00:22]} 31. Qc2 {[%clk 0:00:29]}  Qe7 {[%clk 0:00:21]} 32. Qc5 {[%clk 0:00:19]}  Qg5 {[%clk 0:00:22]} 33. g3 {[%clk 0:00:18]}  h5 {[%clk 0:00:22]} 0-1


[Site "https://www.chess.com"]

[Event "Titled Tuesday Blitz July 20 2021"]
[White "Stribuk, Artiom"]
[Black "Wieczorek, Zbigniew"]
[WhiteFideId "13515659"]
[BlackFideId "1102001"]
[WhiteElo "2224"]
[BlackElo "2299"]
[Result "0-1"]
[Round "09"]
[TimeControl "180+1"]
[Date "2021.07.21"]
[WhiteClock "0:00:01"]
[BlackClock "0:00:05"]

1. d4 {[%clk 0:03:00]}  g6 {[%clk 0:02:58]} 2. Nf3 {[%clk 0:03:00]}  Bg7 {[%clk 0:02:59]} 3. g3 {[%clk 0:03:01]}  Nf6 {[%clk 0:02:59]} 4. Bg2 {[%clk 0:03:01]}  d6 {[%clk 0:03:00]} 5. c4 {[%clk 0:03:01]}  O-O {[%clk 0:03:00]} 6. Nc3 {[%clk 0:03:01]}  Nbd7 {[%clk 0:03:00]} 7. O-O {[%clk 0:03:01]}  e5 {[%clk 0:03:00]} 8. e4 {[%clk 0:03:02]}  Re8 {[%clk 0:03:01]} 9. Re1 {[%clk 0:03:02]}  exd4 {[%clk 0:03:01]} 10. Nxd4 {[%clk 0:03:03]}  Nc5 {[%clk 0:03:01]} 11. h3 {[%clk 0:03:02]}  Bd7 {[%clk 0:02:56]} 12. b4 {[%clk 0:03:01]}  Ne6 {[%clk 0:02:54]} 13. Be3 {[%clk 0:03:02]}  Nxd4 {[%clk 0:02:29]} 14. Bxd4 {[%clk 0:03:01]}  Qc8 {[%clk 0:02:30]} 15. Kh2 {[%clk 0:03:00]}  c5 {[%clk 0:02:28]} 16. bxc5 {[%clk 0:02:50]}  dxc5 {[%clk 0:02:27]} 17. Bxf6 {[%clk 0:02:26]}  Bxf6 {[%clk 0:02:26]} 18. Nd5 {[%clk 0:02:26]}  Bg7 {[%clk 0:02:05]} 19. e5 {[%clk 0:02:07]}  Bc6 {[%clk 0:01:54]} 20. f4 {[%clk 0:02:04]}  Qd8 {[%clk 0:01:15]} 21. Qb3 {[%clk 0:01:50]}  Qa5 {[%clk 0:01:09]} 22. Qb2 {[%clk 0:01:09]}  Rad8 {[%clk 0:01:01]} 23. Rad1 {[%clk 0:01:07]}  Qa4 {[%clk 0:00:53]} 24. Qb3 {[%clk 0:01:01]}  Qa5 {[%clk 0:00:46]} 25. Qe3 {[%clk 0:00:17]}  Ba4 {[%clk 0:00:34]} 26. Rb1 {[%clk 0:00:16]}  b6 {[%clk 0:00:31]} 27. h4 {[%clk 0:00:16]}  Rc8 {[%clk 0:00:26]} 28. Qa3 {[%clk 0:00:17]}  Qa6 {[%clk 0:00:18]} 29. Rbc1 {[%clk 0:00:15]}  Bb5 {[%clk 0:00:17]} 30. Qxa6 {[%clk 0:00:14]}  Bxa6 {[%clk 0:00:17]} 31. Bf3 {[%clk 0:00:15]}  Bb7 {[%clk 0:00:15]} 32. h5 {[%clk 0:00:14]}  Bc6 {[%clk 0:00:15]} 33. Kg2 {[%clk 0:00:14]}  Rcd8 {[%clk 0:00:13]} 34. Re2 {[%clk 0:00:13]}  b5 {[%clk 0:00:13]} 35. Nc7 {[%clk 0:00:07]}  Bxf3+ {[%clk 0:00:12]} 36. Kxf3 {[%clk 0:00:08]}  Re7 {[%clk 0:00:11]} 37. Nxb5 {[%clk 0:00:08]}  a6 {[%clk 0:00:10]} 38. Nd6 {[%clk 0:00:07]}  Red7 {[%clk 0:00:10]} 39. hxg6 {[%clk 0:00:07]}  hxg6 {[%clk 0:00:10]} 40. Ne4 {[%clk 0:00:08]}  Rd3+ {[%clk 0:00:10]} 41. Kg2 {[%clk 0:00:08]}  Ra3 {[%clk 0:00:09]} 42. Nxc5 {[%clk 0:00:06]}  Bf8 {[%clk 0:00:09]} 43. Ne4 {[%clk 0:00:07]}  Rd4 {[%clk 0:00:09]} 44. Rcc2 {[%clk 0:00:07]}  a5 {[%clk 0:00:08]} 45. c5 {[%clk 0:00:07]}  Raa4 {[%clk 0:00:06]} 46. c6 {[%clk 0:00:07]}  Rac4 {[%clk 0:00:06]} 47. c7 {[%clk 0:00:06]}  Rxe4 {[%clk 0:00:06]} 48. c8=Q {[%clk 0:00:01]}  Rxe2+ {[%clk 0:00:05]} 49. Kf3 {[%clk 0:00:01]}  Rexc2 {[%clk 0:00:05]} 0-1


[Site "https://www.chess.com"]

[Event "Titled Tuesday Blitz July 20 2021"]
[White "Sukandar, Irine Kharisma"]
[Black "Gabrielian, Artur"]
[WhiteFideId "7101937"]
[BlackFideId "4131002"]
[WhiteElo "2313"]
[BlackElo "2523"]
[Result "1-0"]
[Round "09"]
[TimeControl "180+1"]
[Date "2021.07.21"]
[WhiteClock "0:01:06"]
[BlackClock "0:00:25"]

1. d4 {[%clk 0:03:00]}  Nf6 {[%clk 0:02:58]} 2. Bf4 {[%clk 0:02:57]}  d5 {[%clk 0:02:57]} 3. e3 {[%clk 0:02:57]}  e6 {[%clk 0:02:57]} 4. Nd2 {[%clk 0:02:56]}  Bd6 {[%clk 0:02:57]} 5. Bg3 {[%clk 0:02:56]}  O-O {[%clk 0:02:56]} 6. Ngf3 {[%clk 0:02:55]}  c5 {[%clk 0:02:56]} 7. c3 {[%clk 0:02:55]}  Qc7 {[%clk 0:02:57]} 8. Ne5 {[%clk 0:02:54]}  Nbd7 {[%clk 0:02:56]} 9. f4 {[%clk 0:02:54]}  b6 {[%clk 0:02:51]} 10. Bd3 {[%clk 0:02:53]}  Bb7 {[%clk 0:02:51]} 11. O-O {[%clk 0:02:52]}  Ne4 {[%clk 0:02:50]} 12. Bxe4 {[%clk 0:02:50]}  dxe4 {[%clk 0:02:45]} 13. Qb1 {[%clk 0:02:26]}  f5 {[%clk 0:02:26]} 14. Ndc4 {[%clk 0:02:18]}  Bxe5 {[%clk 0:02:22]} 15. Nxe5 {[%clk 0:02:14]}  Nxe5 {[%clk 0:02:22]} 16. fxe5 {[%clk 0:02:13]}  cxd4 {[%clk 0:02:15]} 17. cxd4 {[%clk 0:02:10]}  Rac8 {[%clk 0:02:14]} 18. Rc1 {[%clk 0:02:08]}  Qd7 {[%clk 0:02:10]} 19. Be1 {[%clk 0:01:59]}  f4 {[%clk 0:02:08]} 20. Bb4 {[%clk 0:01:52]}  fxe3 {[%clk 0:01:53]} 21. Bxf8 {[%clk 0:01:45]}  Rxf8 {[%clk 0:01:53]} 22. Rf1 {[%clk 0:01:45]}  e2 {[%clk 0:01:35]} 23. Rxf8+ {[%clk 0:01:38]}  Kxf8 {[%clk 0:01:36]} 24. Qe1 {[%clk 0:01:39]}  Qxd4+ {[%clk 0:01:35]} 25. Qf2+ {[%clk 0:01:39]}  Qxf2+ {[%clk 0:01:32]} 26. Kxf2 {[%clk 0:01:39]}  e3+ {[%clk 0:01:23]} 27. Kxe2 {[%clk 0:01:36]}  Bxg2 {[%clk 0:01:23]} 28. Kxe3 {[%clk 0:01:37]}  Bd5 {[%clk 0:01:21]} 29. a3 {[%clk 0:01:36]}  Ke7 {[%clk 0:01:17]} 30. Rc1 {[%clk 0:01:35]}  Kd7 {[%clk 0:01:17]} 31. Rf1 {[%clk 0:01:35]}  Ke7 {[%clk 0:01:17]} 32. Kd4 {[%clk 0:01:30]}  g5 {[%clk 0:01:16]} 33. Rf6 {[%clk 0:01:29]}  Bb3 {[%clk 0:01:09]} 34. Rh6 {[%clk 0:01:23]}  Bc2 {[%clk 0:01:09]} 35. Rh5 {[%clk 0:01:23]}  g4 {[%clk 0:01:05]} 36. Rg5 {[%clk 0:01:21]}  Bf5 {[%clk 0:01:04]} 37. Rg7+ {[%clk 0:01:21]}  Kd8 {[%clk 0:00:59]} 38. Rxa7 {[%clk 0:01:21]}  h5 {[%clk 0:00:52]} 39. Rb7 {[%clk 0:01:20]}  h4 {[%clk 0:00:51]} 40. Ke3 {[%clk 0:01:20]}  g3 {[%clk 0:00:49]} 41. hxg3 {[%clk 0:01:20]}  h3 {[%clk 0:00:47]} 42. Rxb6 {[%clk 0:01:10]}  Kc7 {[%clk 0:00:25]} 43. Rb4 {[%clk 0:01:06]} 1-0


[Site "https://www.chess.com"]

[Event "Titled Tuesday Blitz July 20 2021"]
[White "Timmermans, Mark"]
[Black "Lazavik, Denis"]
[WhiteFideId "1026399"]
[BlackFideId "13515110"]
[WhiteElo "2460"]
[BlackElo "2436"]
[Result "0-1"]
[Round "09"]
[TimeControl "180+1"]
[Date "2021.07.20"]
[WhiteClock "0:00:17"]
[BlackClock "0:00:12"]

1. b4 {[%clk 0:03:00]}  e5 {[%clk 0:02:58]} 2. Bb2 {[%clk 0:03:01]}  Bxb4 {[%clk 0:02:58]} 3. Bxe5 {[%clk 0:03:01]}  Nf6 {[%clk 0:02:59]} 4. Nc3 {[%clk 0:03:01]}  c6 {[%clk 0:02:37]} 5. a3 {[%clk 0:03:01]}  Be7 {[%clk 0:02:35]} 6. e3 {[%clk 0:03:01]}  d5 {[%clk 0:02:34]} 7. Nf3 {[%clk 0:03:01]}  O-O {[%clk 0:02:35]} 8. Be2 {[%clk 0:03:01]}  Bg4 {[%clk 0:02:29]} 9. O-O {[%clk 0:03:00]}  Nbd7 {[%clk 0:02:28]} 10. Bg3 {[%clk 0:03:01]}  Nc5 {[%clk 0:02:28]} 11. Rb1 {[%clk 0:02:53]}  Qc8 {[%clk 0:02:03]} 12. Nd4 {[%clk 0:02:51]}  Bxe2 {[%clk 0:02:01]} 13. Qxe2 {[%clk 0:02:52]}  Nfe4 {[%clk 0:02:01]} 14. Nxe4 {[%clk 0:02:50]}  Nxe4 {[%clk 0:02:02]} 15. a4 {[%clk 0:02:45]}  c5 {[%clk 0:01:58]} 16. Nb5 {[%clk 0:02:32]}  Qc6 {[%clk 0:01:51]} 17. d3 {[%clk 0:02:02]}  Nxg3 {[%clk 0:01:50]} 18. hxg3 {[%clk 0:02:02]}  Bf6 {[%clk 0:01:51]} 19. e4 {[%clk 0:01:33]}  Rfe8 {[%clk 0:01:13]} 20. exd5 {[%clk 0:01:06]}  Qxd5 {[%clk 0:01:11]} 21. Qf3 {[%clk 0:00:53]}  Qd7 {[%clk 0:01:00]} 22. Qf4 {[%clk 0:00:50]}  Be5 {[%clk 0:00:46]} 23. Qh4 {[%clk 0:00:50]}  Re6 {[%clk 0:00:39]} 24. Qg4 {[%clk 0:00:42]}  Rae8 {[%clk 0:00:24]} 25. Na3 {[%clk 0:00:41]}  g6 {[%clk 0:00:21]} 26. Nc4 {[%clk 0:00:41]}  Bd4 {[%clk 0:00:18]} 27. a5 {[%clk 0:00:30]}  h5 {[%clk 0:00:19]} 28. Qf3 {[%clk 0:00:29]}  R8e7 {[%clk 0:00:18]} 29. Kh2 {[%clk 0:00:23]}  Rf6 {[%clk 0:00:17]} 30. Qd1 {[%clk 0:00:24]}  Qc7 {[%clk 0:00:16]} 31. Qd2 {[%clk 0:00:20]}  h4 {[%clk 0:00:15]} 32. Rbe1 {[%clk 0:00:20]}  Rxe1 {[%clk 0:00:14]} 33. Qxe1 {[%clk 0:00:21]}  Rxf2 {[%clk 0:00:12]} 34. Qe8+ {[%clk 0:00:18]}  Kg7 {[%clk 0:00:12]} 35. Rxf2 {[%clk 0:00:16]}  hxg3+ {[%clk 0:00:12]} 36. Kg1 {[%clk 0:00:17]}  gxf2+ {[%clk 0:00:13]} 37. Kf1 {[%clk 0:00:17]}  Qh2 {[%clk 0:00:12]} 0-1


[Site "https://www.chess.com"]

[Event "Titled Tuesday Blitz July 20 2021"]
[White "Timofeev, Artyom"]
[Black "Samsonkin, Artiom"]
[WhiteFideId "4140419"]
[BlackFideId "13503111"]
[WhiteElo "2582"]
[BlackElo "2513"]
[Result "1-0"]
[Round "09"]
[TimeControl "180+1"]
[Date "2021.07.20"]
[WhiteClock "0:00:10"]
[BlackClock "0:00:05"]

1. c4 {[%clk 0:03:00]}  Nf6 {[%clk 0:02:59]} 2. Nc3 {[%clk 0:03:00]}  e6 {[%clk 0:02:59]} 3. Nf3 {[%clk 0:02:59]}  d5 {[%clk 0:02:58]} 4. e3 {[%clk 0:02:59]}  Be7 {[%clk 0:02:53]} 5. b3 {[%clk 0:02:59]}  O-O {[%clk 0:02:53]} 6. Bb2 {[%clk 0:02:59]}  b6 {[%clk 0:02:54]} 7. cxd5 {[%clk 0:02:54]}  exd5 {[%clk 0:02:47]} 8. d4 {[%clk 0:02:51]}  Bb7 {[%clk 0:02:40]} 9. Bd3 {[%clk 0:02:50]}  c5 {[%clk 0:02:34]} 10. O-O {[%clk 0:02:49]}  Nc6 {[%clk 0:02:34]} 11. Ne2 {[%clk 0:02:48]}  Bd6 {[%clk 0:02:26]} 12. Ng3 {[%clk 0:02:44]}  Ne7 {[%clk 0:02:24]} 13. dxc5 {[%clk 0:02:42]}  bxc5 {[%clk 0:02:21]} 14. Bxf6 {[%clk 0:02:41]}  gxf6 {[%clk 0:02:22]} 15. Nh4 {[%clk 0:02:34]}  Ng6 {[%clk 0:02:20]} 16. Nhf5 {[%clk 0:02:33]}  Re8 {[%clk 0:02:09]} 17. Nxd6 {[%clk 0:02:24]}  Qxd6 {[%clk 0:02:10]} 18. Nf5 {[%clk 0:02:24]}  Qd7 {[%clk 0:02:02]} 19. Rc1 {[%clk 0:02:10]}  c4 {[%clk 0:01:44]} 20. Bb1 {[%clk 0:01:47]}  Rad8 {[%clk 0:01:26]} 21. Qh5 {[%clk 0:01:43]}  Kh8 {[%clk 0:01:22]} 22. Rfd1 {[%clk 0:01:34]}  Rg8 {[%clk 0:01:19]} 23. bxc4 {[%clk 0:01:25]}  Rc8 {[%clk 0:00:41]} 24. c5 {[%clk 0:01:23]}  d4 {[%clk 0:00:33]} 25. Rxd4 {[%clk 0:01:09]}  Qe6 {[%clk 0:00:27]} 26. Ng3 {[%clk 0:00:38]}  Rgd8 {[%clk 0:00:20]} 27. Bf5 {[%clk 0:00:37]}  Qc6 {[%clk 0:00:18]} 28. Be4 {[%clk 0:00:36]}  Qc7 {[%clk 0:00:18]} 29. Bxb7 {[%clk 0:00:36]}  Qxb7 {[%clk 0:00:18]} 30. Rxd8+ {[%clk 0:00:34]}  Rxd8 {[%clk 0:00:19]} 31. h3 {[%clk 0:00:32]}  Qb2 {[%clk 0:00:19]} 32. Rf1 {[%clk 0:00:30]}  Rc8 {[%clk 0:00:19]} 33. Qf5 {[%clk 0:00:26]}  Rc7 {[%clk 0:00:15]} 34. Ne4 {[%clk 0:00:26]}  Qe5 {[%clk 0:00:15]} 35. Qxe5 {[%clk 0:00:25]}  fxe5 {[%clk 0:00:16]} 36. Rc1 {[%clk 0:00:24]}  Kg7 {[%clk 0:00:14]} 37. Nd6 {[%clk 0:00:22]}  Kf8 {[%clk 0:00:14]} 38. Nb5 {[%clk 0:00:22]}  Rb7 {[%clk 0:00:10]} 39. Nd6 {[%clk 0:00:19]}  Rc7 {[%clk 0:00:08]} 40. Nb5 {[%clk 0:00:16]}  Rb7 {[%clk 0:00:08]} 41. Nc3 {[%clk 0:00:16]}  Rc7 {[%clk 0:00:09]} 42. Nd5 {[%clk 0:00:16]}  Rd7 {[%clk 0:00:09]} 43. Nb4 {[%clk 0:00:15]}  a5 {[%clk 0:00:09]} 44. c6 {[%clk 0:00:15]}  Rd2 {[%clk 0:00:03]} 45. c7 {[%clk 0:00:12]}  Ne7 {[%clk 0:00:04]} 46. c8=Q+ {[%clk 0:00:12]}  Nxc8 {[%clk 0:00:05]} 47. Rxc8+ {[%clk 0:00:12]}  Kg7 {[%clk 0:00:06]} 48. Nc6 {[%clk 0:00:12]}  Rxa2 {[%clk 0:00:06]} 49. Nxe5 {[%clk 0:00:12]}  a4 {[%clk 0:00:07]} 50. Ra8 {[%clk 0:00:12]}  a3 {[%clk 0:00:07]} 51. g4 {[%clk 0:00:11]}  Ra1+ {[%clk 0:00:08]} 52. Kg2 {[%clk 0:00:11]}  Kf6 {[%clk 0:00:08]} 53. Nd3 {[%clk 0:00:11]}  Ke6 {[%clk 0:00:07]} 54. Nb4 {[%clk 0:00:11]}  f5 {[%clk 0:00:04]} 55. Nc2 {[%clk 0:00:11]}  Rc1 {[%clk 0:00:04]} 56. Nxa3 {[%clk 0:00:11]}  fxg4 {[%clk 0:00:05]} 57. hxg4 {[%clk 0:00:11]}  Ra1 {[%clk 0:00:06]} 58. Ra7 {[%clk 0:00:10]}  Ke5 {[%clk 0:00:05]} 59. Nb5 {[%clk 0:00:10]}  Rb1 {[%clk 0:00:05]} 60. Nd4 {[%clk 0:00:10]} 1-0


[Site "https://www.chess.com"]

[Event "Titled Tuesday Blitz July 20 2021"]
[White "Vlassov, Nikolai"]
[Black "Leitao, Rafael"]
[WhiteFideId "4103360"]
[BlackFideId "2101246"]
[WhiteElo "2407"]
[BlackElo "2609"]
[Result "0-1"]
[Round "09"]
[TimeControl "180+1"]
[Date "2021.07.21"]
[WhiteClock "0:00:04"]
[BlackClock "0:00:23"]

1. e4 {[%clk 0:02:52]}  e5 {[%clk 0:02:58]} 2. Bc4 {[%clk 0:02:51]}  Nf6 {[%clk 0:02:54]} 3. d3 {[%clk 0:02:51]}  c6 {[%clk 0:02:53]} 4. Nf3 {[%clk 0:02:51]}  d5 {[%clk 0:02:53]} 5. Bb3 {[%clk 0:02:51]}  Bb4+ {[%clk 0:02:51]} 6. c3 {[%clk 0:02:51]}  Bd6 {[%clk 0:02:50]} 7. Bg5 {[%clk 0:02:50]}  dxe4 {[%clk 0:02:38]} 8. dxe4 {[%clk 0:02:50]}  O-O {[%clk 0:02:37]} 9. Nbd2 {[%clk 0:02:49]}  Qe7 {[%clk 0:02:31]} 10. Qe2 {[%clk 0:02:46]}  Na6 {[%clk 0:02:23]} 11. Nc4 {[%clk 0:02:45]}  Bc7 {[%clk 0:02:18]} 12. Ne3 {[%clk 0:02:41]}  Nc5 {[%clk 0:02:13]} 13. Nd2 {[%clk 0:02:34]}  Nxb3 {[%clk 0:02:12]} 14. axb3 {[%clk 0:02:33]}  Qe6 {[%clk 0:01:54]} 15. O-O {[%clk 0:02:21]}  Nd7 {[%clk 0:01:42]} 16. Nf5 {[%clk 0:02:16]}  f6 {[%clk 0:01:22]} 17. Be3 {[%clk 0:02:03]}  Kh8 {[%clk 0:01:14]} 18. Qc4 {[%clk 0:01:53]}  Nb6 {[%clk 0:01:08]} 19. Qxe6 {[%clk 0:01:41]}  Bxe6 {[%clk 0:01:08]} 20. Bxb6 {[%clk 0:01:20]}  axb6 {[%clk 0:01:05]} 21. Nc4 {[%clk 0:01:20]}  g6 {[%clk 0:01:01]} 22. Nfe3 {[%clk 0:01:16]}  b5 {[%clk 0:01:01]} 23. Nd2 {[%clk 0:01:11]}  Rfd8 {[%clk 0:01:01]} 24. Rxa8 {[%clk 0:01:07]}  Rxa8 {[%clk 0:01:00]} 25. f3 {[%clk 0:01:03]}  Kg7 {[%clk 0:01:00]} 26. Kf2 {[%clk 0:01:03]}  Ra2 {[%clk 0:01:00]} 27. Rb1 {[%clk 0:01:02]}  Kf7 {[%clk 0:00:59]} 28. Ke2 {[%clk 0:01:03]}  Ke7 {[%clk 0:00:59]} 29. Nc2 {[%clk 0:01:01]}  Ra8 {[%clk 0:00:57]} 30. Ra1 {[%clk 0:01:00]}  Rxa1 {[%clk 0:00:54]} 31. Nxa1 {[%clk 0:01:00]}  f5 {[%clk 0:00:54]} 32. b4 {[%clk 0:00:59]}  Bb6 {[%clk 0:00:54]} 33. Nc2 {[%clk 0:00:59]}  Bg1 {[%clk 0:00:53]} 34. h3 {[%clk 0:00:59]}  f4 {[%clk 0:00:46]} 35. Na3 {[%clk 0:00:52]}  Bb6 {[%clk 0:00:45]} 36. b3 {[%clk 0:00:50]}  Kf6 {[%clk 0:00:41]} 37. c4 {[%clk 0:00:50]}  Bd7 {[%clk 0:00:38]} 38. c5 {[%clk 0:00:46]}  Bd8 {[%clk 0:00:38]} 39. Nc2 {[%clk 0:00:42]}  Kg5 {[%clk 0:00:37]} 40. Ne1 {[%clk 0:00:41]}  Be6 {[%clk 0:00:37]} 41. Nd3 {[%clk 0:00:41]}  Bf6 {[%clk 0:00:37]} 42. Kf2 {[%clk 0:00:37]}  Kh4 {[%clk 0:00:37]} 43. Nc1 {[%clk 0:00:30]}  g5 {[%clk 0:00:36]} 44. Nd3 {[%clk 0:00:25]}  h5 {[%clk 0:00:34]} 45. Nc1 {[%clk 0:00:26]}  g4 {[%clk 0:00:34]} 46. hxg4 {[%clk 0:00:26]}  hxg4 {[%clk 0:00:34]} 47. Nd3 {[%clk 0:00:26]}  Kh5 {[%clk 0:00:32]} 48. Nc1 {[%clk 0:00:25]}  Kg6 {[%clk 0:00:31]} 49. Nd3 {[%clk 0:00:25]}  Bh4+ {[%clk 0:00:32]} 50. Ke2 {[%clk 0:00:25]}  Kf6 {[%clk 0:00:31]} 51. Nc1 {[%clk 0:00:23]}  Bg3 {[%clk 0:00:30]} 52. Kd3 {[%clk 0:00:20]}  Bf2 {[%clk 0:00:28]} 53. Ke2 {[%clk 0:00:20]}  Be3 {[%clk 0:00:29]} 54. Kd3 {[%clk 0:00:20]}  Kg5 {[%clk 0:00:27]} 55. Ke2 {[%clk 0:00:20]}  Kh4 {[%clk 0:00:27]} 56. Nd3 {[%clk 0:00:20]}  Kg3 {[%clk 0:00:26]} 57. Nxe5 {[%clk 0:00:19]}  Kxg2 {[%clk 0:00:26]} 58. fxg4 {[%clk 0:00:15]}  Bxd2 {[%clk 0:00:23]} 59. Kxd2 {[%clk 0:00:15]}  f3 {[%clk 0:00:24]} 60. Nxf3 {[%clk 0:00:03]}  Kxf3 {[%clk 0:00:23]} 61. g5 {[%clk 0:00:04]}  Kxe4 {[%clk 0:00:23]} 62. g6 {[%clk 0:00:04]}  Kd4 {[%clk 0:00:23]} 0-1


[Site "https://www.chess.com"]

[Event "Titled Tuesday Blitz July 20 2021"]
[White "Vukovic, Zdravko"]
[Black "Nguyen, Hong Ngoc"]
[WhiteFideId "900877"]
[BlackFideId "12403083"]
[WhiteElo "2590"]
[BlackElo "1830"]
[Result "1-0"]
[Round "09"]
[TimeControl "180+1"]
[Date "2021.07.21"]
[WhiteClock "0:00:53"]
[BlackClock "0:00:06"]

1. e4 {[%clk 0:02:59]}  d6 {[%clk 0:02:59]} 2. d4 {[%clk 0:02:59]}  Nf6 {[%clk 0:02:58]} 3. Nc3 {[%clk 0:03:00]}  g6 {[%clk 0:02:59]} 4. Nf3 {[%clk 0:03:00]}  Bg7 {[%clk 0:02:59]} 5. Be2 {[%clk 0:03:01]}  O-O {[%clk 0:02:59]} 6. O-O {[%clk 0:03:01]}  Nc6 {[%clk 0:02:59]} 7. d5 {[%clk 0:03:00]}  Ne5 {[%clk 0:02:59]} 8. Nxe5 {[%clk 0:03:01]}  dxe5 {[%clk 0:03:00]} 9. f4 {[%clk 0:02:53]}  Ne8 {[%clk 0:02:55]} 10. f5 {[%clk 0:02:39]}  Nd6 {[%clk 0:02:53]} 11. g4 {[%clk 0:02:39]}  e6 {[%clk 0:02:47]} 12. fxe6 {[%clk 0:02:16]}  fxe6 {[%clk 0:02:48]} 13. Rxf8+ {[%clk 0:02:10]}  Bxf8 {[%clk 0:02:45]} 14. Be3 {[%clk 0:02:09]}  Bg7 {[%clk 0:02:14]} 15. Qd2 {[%clk 0:02:08]}  Qe8 {[%clk 0:01:57]} 16. Rf1 {[%clk 0:02:04]}  a6 {[%clk 0:01:52]} 17. Bh6 {[%clk 0:01:42]}  Nf7 {[%clk 0:01:41]} 18. Bxg7 {[%clk 0:01:40]}  Kxg7 {[%clk 0:01:42]} 19. Bc4 {[%clk 0:01:37]}  Qe7 {[%clk 0:01:37]} 20. Bb3 {[%clk 0:01:31]}  Bd7 {[%clk 0:01:17]} 21. h3 {[%clk 0:01:26]}  Rf8 {[%clk 0:01:14]} 22. Kg2 {[%clk 0:01:21]}  Nd6 {[%clk 0:00:53]} 23. Rxf8 {[%clk 0:01:16]}  Kxf8 {[%clk 0:00:52]} 24. Qh6+ {[%clk 0:01:15]}  Kg8 {[%clk 0:00:39]} 25. dxe6 {[%clk 0:01:14]}  Bxe6 {[%clk 0:00:39]} 26. Nd5 {[%clk 0:01:14]}  Qf7 {[%clk 0:00:37]} 27. Qe3 {[%clk 0:01:11]}  c6 {[%clk 0:00:25]} 28. Qc5 {[%clk 0:01:06]}  Nxe4 {[%clk 0:00:23]} 29. Ne7+ {[%clk 0:01:03]}  Kf8 {[%clk 0:00:20]} 30. Nxg6+ {[%clk 0:00:59]}  Ke8 {[%clk 0:00:19]} 31. Bxe6 {[%clk 0:00:58]}  Nxc5 {[%clk 0:00:11]} 32. Bxf7+ {[%clk 0:00:57]}  Kxf7 {[%clk 0:00:11]} 33. Nxe5+ {[%clk 0:00:58]}  Ke6 {[%clk 0:00:12]} 34. Nd3 {[%clk 0:00:58]}  Ne4 {[%clk 0:00:11]} 35. Kf3 {[%clk 0:00:56]}  Nd2+ {[%clk 0:00:11]} 36. Kf4 {[%clk 0:00:56]}  Nc4 {[%clk 0:00:10]} 37. b3 {[%clk 0:00:56]}  Nd6 {[%clk 0:00:10]} 38. c4 {[%clk 0:00:55]}  b6 {[%clk 0:00:07]} 39. h4 {[%clk 0:00:54]}  c5 {[%clk 0:00:06]} 40. h5 {[%clk 0:00:54]}  h6 {[%clk 0:00:06]} 41. g5 {[%clk 0:00:54]}  hxg5+ {[%clk 0:00:05]} 42. Kxg5 {[%clk 0:00:55]}  Kf7 {[%clk 0:00:04]} 43. h6 {[%clk 0:00:54]}  Ne4+ {[%clk 0:00:05]} 44. Kf5 {[%clk 0:00:52]}  Nc3 {[%clk 0:00:05]} 45. Ne5+ {[%clk 0:00:52]}  Kg8 {[%clk 0:00:05]} 46. Kg6 {[%clk 0:00:52]}  Ne4 {[%clk 0:00:05]} 47. h7+ {[%clk 0:00:53]}  Kh8 {[%clk 0:00:06]} 48. Nf7# {[%clk 0:00:53]} 1-0


[Site "https://www.chess.com"]